[Event "Late-Titled-Tuesday-Blitz-September-19-2023"]
[Site "Chess.com"]
[Date "2023.09.19"]
[Round "11"]
[White "dawid498"]
[Black "TatjanaVasilevich"]
[Result "1-0"]
[WhiteElo "2671"]
[BlackElo "2563"]
[TimeControl "180+1"]
[EndTime "16:05:44 PDT"]
[Termination "dawid498 won by checkmate"]

1. e4 {[%clk 0:03:00.9]} 1... c5 {[%clk 0:02:59.9]} 2. Nf3 {[%clk 0:03:01.2]}
2... e6 {[%clk 0:03:00.2]} 3. d4 {[%clk 0:03:01.4]} 3... cxd4 {[%clk 0:03:01]}
4. Nxd4 {[%clk 0:03:02.3]} 4... Nf6 {[%clk 0:03:01.3]} 5. Nc3 {[%clk 0:03:02.5]}
5... Bb4 {[%clk 0:03:01.6]} 6. e5 {[%clk 0:02:56.4]} 6... Ne4 {[%clk 0:02:57.1]}
7. Qg4 {[%clk 0:02:53.1]} 7... Nxc3 {[%clk 0:02:55.6]} 8. Qxg7 {[%clk
0:02:48.9]} 8... Rf8 {[%clk 0:02:51.6]} 9. a3 {[%clk 0:02:42]} 9... Qa5 {[%clk
0:02:47]} 10. axb4 {[%clk 0:02:32.4]} 10... Qxa1 {[%clk 0:02:45.5]} 11. Nb3
{[%clk 0:02:33]} 11... Qb1 {[%clk 0:02:38.8]} 12. bxc3 {[%clk 0:02:15.2]} 12...
d6 {[%clk 0:02:32]} 13. Bd3 {[%clk 0:01:59.4]} 13... a5 {[%clk 0:02:26.6]} 14.
O-O {[%clk 0:01:57.2]} 14... Nd7 {[%clk 0:02:22.3]} 15. exd6 {[%clk 0:01:04.6]}
15... a4 {[%clk 0:02:15.8]} 16. Nc5 {[%clk 0:01:04.5]} 16... Nxc5 {[%clk
0:01:38.9]} 17. Bh6 {[%clk 0:00:36.4]} 17... Qxf1+ {[%clk 0:01:33.2]} 18. Kxf1
{[%clk 0:00:34.7]} 18... Nd7 {[%clk 0:01:32.6]} 19. Qg5 {[%clk 0:00:33.1]} 19...
f6 {[%clk 0:01:27.6]} 20. Qg7 {[%clk 0:00:22.5]} 20... Rf7 {[%clk 0:01:21.5]}
21. Qg8+ {[%clk 0:00:23]} 21... Nf8 {[%clk 0:01:21.7]} 22. Bxf8 {[%clk
0:00:21.8]} 22... Rxf8 {[%clk 0:01:14.6]} 23. Qxh7 {[%clk 0:00:22.2]} 23... Rf7
{[%clk 0:01:11.1]} 24. Bg6 {[%clk 0:00:22.4]} 24... Kd7 {[%clk 0:01:10.2]} 25.
Qxf7+ {[%clk 0:00:22.3]} 25... Kxd6 {[%clk 0:01:10.7]} 26. Qxf6 {[%clk
0:00:12.3]} 26... a3 {[%clk 0:01:11.2]} 27. c4 {[%clk 0:00:12.8]} 27... a2
{[%clk 0:01:10.5]} 28. c5+ {[%clk 0:00:12.9]} 28... Kc6 {[%clk 0:01:10.6]} 29.
Qa1 {[%clk 0:00:11.4]} 29... e5 {[%clk 0:01:07.5]} 30. c4 {[%clk 0:00:08.8]}
30... Be6 {[%clk 0:01:04.2]} 31. Be4+ {[%clk 0:00:09.1]} 31... Kd7 {[%clk
0:01:03.4]} 32. Bd5 {[%clk 0:00:09.3]} 32... Bf5 {[%clk 0:01:02.8]} 33. Bxb7
{[%clk 0:00:08.9]} 33... Ra3 {[%clk 0:01:00.4]} 34. Bd5 {[%clk 0:00:06.7]} 34...
Bg4 {[%clk 0:00:55.3]} 35. f3 {[%clk 0:00:05.9]} 35... Bf5 {[%clk 0:00:54.9]}
36. c6+ {[%clk 0:00:06.4]} 36... Kc8 {[%clk 0:00:52.7]} 37. Be4 {[%clk
0:00:04.1]} 37... Be6 {[%clk 0:00:49.8]} 38. Bd5 {[%clk 0:00:04.5]} 38... Bf5
{[%clk 0:00:49.7]} 39. b5 {[%clk 0:00:05.1]} 39... Bd3+ {[%clk 0:00:36.8]} 40.
Kf2 {[%clk 0:00:04.2]} 40... Bg6 {[%clk 0:00:36.3]} 41. c5 {[%clk 0:00:04.1]}
41... Bb1 {[%clk 0:00:33.6]} 42. b6 {[%clk 0:00:02.2]} 42... Rd3 {[%clk
0:00:28.9]} 43. Be6+ {[%clk 0:00:02.4]} 43... Kd8 {[%clk 0:00:27.9]} 44. c7+
{[%clk 0:00:03.3]} 44... Ke7 {[%clk 0:00:28.4]} 45. c8=Q {[%clk 0:00:04.2]}
45... Rd1 {[%clk 0:00:28.9]} 46. Qc7+ {[%clk 0:00:03.7]} 46... Kxe6 {[%clk
0:00:28.6]} 47. Qcxe5+ {[%clk 0:00:04]} 47... Kd7 {[%clk 0:00:28.4]} 48. c6+
{[%clk 0:00:04]} 48... Kxc6 {[%clk 0:00:28.6]} 49. Qac3+ {[%clk 0:00:04.5]}
49... Kxb6 {[%clk 0:00:28.7]} 50. Qec5+ {[%clk 0:00:04.7]} 50... Kb7 {[%clk
0:00:27.9]} 51. Q3b4+ {[%clk 0:00:05]} 51... Ka8 {[%clk 0:00:28]} 52. Qca5#
{[%clk 0:00:05.9]} 1-0

[Event "Late-Titled-Tuesday-Blitz-September-19-2023"]
[Site "Chess.com"]
[Date "2023.09.19"]
[Round "11"]
[White "wild3000"]
[Black "rikchessmx"]
[Result "1-0"]
[WhiteElo "2471"]
[BlackElo "2346"]
[TimeControl "180+1"]
[EndTime "16:05:49 PDT"]
[Termination "wild3000 won by checkmate"]

1. a3 {[%clk 0:01:55.6]} 1... g6 {[%clk 0:02:58.8]} 2. h4 {[%clk 0:01:55.5]}
2... h5 {[%clk 0:02:55.1]} 3. d4 {[%clk 0:01:55.2]} 3... Bg7 {[%clk 0:02:55.3]}
4. e4 {[%clk 0:01:55.5]} 4... b6 {[%clk 0:02:55]} 5. Bd3 {[%clk 0:01:55.3]} 5...
Bb7 {[%clk 0:02:55.3]} 6. Ne2 {[%clk 0:01:54.6]} 6... Nc6 {[%clk 0:02:54.6]} 7.
c3 {[%clk 0:01:53.1]} 7... d5 {[%clk 0:02:54.7]} 8. e5 {[%clk 0:01:52.9]} 8...
Nh6 {[%clk 0:02:54.5]} 9. Ng3 {[%clk 0:01:50.4]} 9... e6 {[%clk 0:02:45.4]} 10.
Nd2 {[%clk 0:01:48]} 10... Nf5 {[%clk 0:02:41.7]} 11. Nf3 {[%clk 0:01:45.8]}
11... Nce7 {[%clk 0:02:38.4]} 12. Bg5 {[%clk 0:01:39.1]} 12... Qd7 {[%clk
0:02:37.6]} 13. a4 {[%clk 0:01:36.8]} 13... a5 {[%clk 0:02:35.8]} 14. O-O {[%clk
0:01:34.8]} 14... c5 {[%clk 0:02:30.4]} 15. Bb5 {[%clk 0:01:33.8]} 15... Bc6
{[%clk 0:02:30.2]} 16. Bxc6 {[%clk 0:01:28.2]} 16... Nxc6 {[%clk 0:02:26.6]} 17.
dxc5 {[%clk 0:01:22.5]} 17... bxc5 {[%clk 0:02:25.9]} 18. Nxf5 {[%clk
0:01:16.9]} 18... gxf5 {[%clk 0:02:23.9]} 19. Re1 {[%clk 0:01:17.2]} 19... Bf8
{[%clk 0:02:05.1]} 20. Bf6 {[%clk 0:01:15.3]} 20... Rg8 {[%clk 0:02:04.9]} 21.
Ng5 {[%clk 0:01:15.4]} 21... Be7 {[%clk 0:02:00.6]} 22. Qxh5 {[%clk 0:01:14.9]}
22... Bxf6 {[%clk 0:02:00.6]} 23. exf6 {[%clk 0:01:15]} 23... O-O-O {[%clk
0:01:47.8]} 24. Rac1 {[%clk 0:01:10.4]} 24... Rdf8 {[%clk 0:01:43.3]} 25. b4
{[%clk 0:01:10.1]} 25... axb4 {[%clk 0:01:40.7]} 26. cxb4 {[%clk 0:01:10]} 26...
c4 {[%clk 0:01:41]} 27. b5 {[%clk 0:01:10.2]} 27... Nd4 {[%clk 0:01:40.8]} 28.
Qd1 {[%clk 0:01:02.6]} 28... Qa7 {[%clk 0:01:28.9]} 29. Qd2 {[%clk 0:00:39.2]}
29... Nb3 {[%clk 0:01:24.1]} 30. Qb4 {[%clk 0:00:38]} 30... Nxc1 {[%clk
0:01:22.8]} 31. Rxc1 {[%clk 0:00:38.9]} 31... Kb7 {[%clk 0:01:17.1]} 32. Qe7+
{[%clk 0:00:36.1]} 32... Ka8 {[%clk 0:01:13.8]} 33. Qb4 {[%clk 0:00:28.4]} 33...
Rb8 {[%clk 0:01:11.9]} 34. a5 {[%clk 0:00:28.1]} 34... Qd4 {[%clk 0:01:11.6]}
35. b6 {[%clk 0:00:23.7]} 35... Kb7 {[%clk 0:01:04.4]} 36. a6+ {[%clk
0:00:21.4]} 36... Kc6 {[%clk 0:00:58.2]} 37. b7 {[%clk 0:00:20.1]} 37... Qb6
{[%clk 0:00:53.9]} 38. Qa4+ {[%clk 0:00:16.9]} 38... Kc7 {[%clk 0:00:49.8]} 39.
Nxf7 {[%clk 0:00:12.7]} 39... Qc6 {[%clk 0:00:46.5]} 40. Qxc6+ {[%clk 0:00:11]}
40... Kxc6 {[%clk 0:00:46.8]} 41. Ne5+ {[%clk 0:00:11.3]} 41... Kb6 {[%clk
0:00:46.8]} 42. Nd7+ {[%clk 0:00:11.2]} 42... Ka7 {[%clk 0:00:46.6]} 43. Nxb8
{[%clk 0:00:11.1]} 43... Rxb8 {[%clk 0:00:47.2]} 44. Ra1 {[%clk 0:00:10.4]}
44... c3 {[%clk 0:00:47]} 45. h5 {[%clk 0:00:10.1]} 45... d4 {[%clk 0:00:47.4]}
46. Kf1 {[%clk 0:00:11]} 46... d3 {[%clk 0:00:47.8]} 47. Ke1 {[%clk 0:00:09.8]}
47... Rd8 {[%clk 0:00:47.2]} 48. f7 {[%clk 0:00:08]} 48... Rf8 {[%clk
0:00:46.2]} 49. Rb1 {[%clk 0:00:07.5]} 49... Kb8 {[%clk 0:00:44.9]} 50. h6
{[%clk 0:00:06.9]} 50... c2 {[%clk 0:00:45.1]} 51. Rc1 {[%clk 0:00:06.2]} 51...
e5 {[%clk 0:00:44.3]} 52. Kd2 {[%clk 0:00:06.5]} 52... e4 {[%clk 0:00:45.2]} 53.
f3 {[%clk 0:00:06.7]} 53... e3+ {[%clk 0:00:44.7]} 54. Kxd3 {[%clk 0:00:06.5]}
54... f4 {[%clk 0:00:45.2]} 55. Rxc2 {[%clk 0:00:05.4]} 55... Rxf7 {[%clk
0:00:45.6]} 56. Rc8+ {[%clk 0:00:05.3]} 56... Ka7 {[%clk 0:00:46]} 57. b8=Q+
{[%clk 0:00:06]} 57... Kxa6 {[%clk 0:00:46.1]} 58. Rc6+ {[%clk 0:00:06.4]} 58...
Ka5 {[%clk 0:00:45.2]} 59. Qb6+ {[%clk 0:00:06.6]} 59... Ka4 {[%clk 0:00:45.5]}
60. Rc4+ {[%clk 0:00:06.9]} 60... Ka3 {[%clk 0:00:45.8]} 61. Qb4+ {[%clk
0:00:07.3]} 61... Ka2 {[%clk 0:00:46.1]} 62. Rc2+ {[%clk 0:00:07.2]} 62... Ka1
{[%clk 0:00:46.2]} 63. Qa3+ {[%clk 0:00:07.5]} 63... Kb1 {[%clk 0:00:45.8]} 64.
Qa2# {[%clk 0:00:07.9]} 1-0

[Event "Late-Titled-Tuesday-Blitz-September-19-2023"]
[Site "Chess.com"]
[Date "2023.09.19"]
[Round "11"]
[White "GadimbayliA"]
[Black "Jospem"]
[Result "1-0"]
[WhiteElo "2856"]
[BlackElo "3051"]
[TimeControl "180+1"]
[EndTime "16:05:51 PDT"]
[Termination "GadimbayliA won by checkmate"]

1. Nf3 {[%clk 0:02:57.9]} 1... Nf6 {[%clk 0:03:00.7]} 2. Nc3 {[%clk 0:02:56.4]}
2... d5 {[%clk 0:03:00.5]} 3. d4 {[%clk 0:02:56.6]} 3... c6 {[%clk 0:03:00.1]}
4. Bf4 {[%clk 0:02:56.5]} 4... Bf5 {[%clk 0:02:58]} 5. e3 {[%clk 0:02:56.7]}
5... e6 {[%clk 0:02:58]} 6. Bd3 {[%clk 0:02:57.3]} 6... Nbd7 {[%clk 0:02:55]} 7.
O-O {[%clk 0:02:56.3]} 7... Be7 {[%clk 0:02:52]} 8. h3 {[%clk 0:02:56.6]} 8...
O-O {[%clk 0:02:52]} 9. Re1 {[%clk 0:02:56.2]} 9... Bb4 {[%clk 0:02:47.5]} 10.
a3 {[%clk 0:02:33.3]} 10... Bxc3 {[%clk 0:02:45.2]} 11. bxc3 {[%clk 0:02:34.2]}
11... Ne4 {[%clk 0:02:39.7]} 12. c4 {[%clk 0:02:30.7]} 12... h6 {[%clk
0:02:39.5]} 13. cxd5 {[%clk 0:02:29.4]} 13... exd5 {[%clk 0:02:37.1]} 14. c4
{[%clk 0:02:29.6]} 14... dxc4 {[%clk 0:02:36]} 15. Bxc4 {[%clk 0:02:30.5]} 15...
Nb6 {[%clk 0:02:36.5]} 16. Bd3 {[%clk 0:02:30.5]} 16... Nd5 {[%clk 0:02:36.9]}
17. Qc2 {[%clk 0:02:29.6]} 17... Ndf6 {[%clk 0:02:08.9]} 18. Nd2 {[%clk
0:02:16.9]} 18... Qd5 {[%clk 0:01:56.9]} 19. f3 {[%clk 0:02:01.9]} 19... Nxd2
{[%clk 0:01:57.2]} 20. Bxf5 {[%clk 0:02:01.8]} 20... Nc4 {[%clk 0:01:57.8]} 21.
Bd3 {[%clk 0:01:43.8]} 21... Nb6 {[%clk 0:01:57.9]} 22. Rad1 {[%clk 0:01:42.5]}
22... Rad8 {[%clk 0:01:47.8]} 23. Be5 {[%clk 0:01:32.3]} 23... Nfd7 {[%clk
0:01:40.8]} 24. e4 {[%clk 0:01:32.4]} 24... Qe6 {[%clk 0:01:35.5]} 25. Bc7
{[%clk 0:01:30.4]} 25... Rc8 {[%clk 0:01:34.9]} 26. Bg3 {[%clk 0:01:30]} 26...
Rfd8 {[%clk 0:01:34.8]} 27. Qb1 {[%clk 0:01:28.5]} 27... Nf8 {[%clk 0:01:28.1]}
28. d5 {[%clk 0:01:18.6]} 28... Qe8 {[%clk 0:01:21.1]} 29. d6 {[%clk 0:01:17.6]}
29... c5 {[%clk 0:01:18.5]} 30. e5 {[%clk 0:01:17]} 30... Qa4 {[%clk 0:01:16.1]}
31. Bf5 {[%clk 0:01:12.8]} 31... Ne6 {[%clk 0:01:14.6]} 32. Re4 {[%clk
0:00:54.9]} 32... Qxa3 {[%clk 0:01:06.5]} 33. Bxe6 {[%clk 0:00:55]} 33... fxe6
{[%clk 0:01:05.8]} 34. Rg4 {[%clk 0:00:55.3]} 34... Rd7 {[%clk 0:01:00.4]} 35.
Qg6 {[%clk 0:00:52.6]} 35... Qb3 {[%clk 0:01:00.8]} 36. Rb1 {[%clk 0:00:49.9]}
36... Qa2 {[%clk 0:00:58.7]} 37. Rf1 {[%clk 0:00:40.9]} 37... Rf8 {[%clk
0:00:45.1]} 38. Bh4 {[%clk 0:00:34.6]} 38... Rff7 {[%clk 0:00:40]} 39. Be7
{[%clk 0:00:31.1]} 39... Qd5 {[%clk 0:00:29.9]} 40. f4 {[%clk 0:00:27.1]} 40...
Nc4 {[%clk 0:00:30.4]} 41. Rf3 {[%clk 0:00:22.8]} 41... Rdxe7 {[%clk 0:00:28.8]}
42. dxe7 {[%clk 0:00:23]} 42... Rxe7 {[%clk 0:00:29.7]} 43. Qxh6 {[%clk
0:00:19.4]} 43... Qd4+ {[%clk 0:00:26.6]} 44. Kh2 {[%clk 0:00:15.4]} 44... Ne3
{[%clk 0:00:27.3]} 45. Rg5 {[%clk 0:00:08.7]} 45... Nd5 {[%clk 0:00:14.1]} 46.
Rfg3 {[%clk 0:00:06.2]} 46... Kf8 {[%clk 0:00:06.3]} 47. Qh8+ {[%clk 0:00:05.9]}
47... Kf7 {[%clk 0:00:06.4]} 48. Rxg7# {[%clk 0:00:06.8]} 1-0

[Event "Late-Titled-Tuesday-Blitz-September-19-2023"]
[Site "Chess.com"]
[Date "2023.09.19"]
[Round "11"]
[White "victormago"]
[Black "AsaHoffmann"]
[Result "0-1"]
[WhiteElo "2507"]
[BlackElo "2397"]
[TimeControl "180+1"]
[EndTime "16:05:53 PDT"]
[Termination "AsaHoffmann won by resignation"]

1. d4 {[%clk 0:03:00.9]} 1... Nf6 {[%clk 0:02:53.9]} 2. c4 {[%clk 0:02:59.5]}
2... c5 {[%clk 0:02:53.5]} 3. d5 {[%clk 0:02:59]} 3... e5 {[%clk 0:02:49.7]} 4.
Nc3 {[%clk 0:02:57]} 4... d6 {[%clk 0:02:49.7]} 5. e4 {[%clk 0:02:57]} 5... Be7
{[%clk 0:02:48]} 6. Bd3 {[%clk 0:02:57.1]} 6... Nbd7 {[%clk 0:02:47.8]} 7. Nge2
{[%clk 0:02:56.9]} 7... Nf8 {[%clk 0:02:47.7]} 8. O-O {[%clk 0:02:56.1]} 8...
Ng6 {[%clk 0:02:47.6]} 9. f3 {[%clk 0:02:54.1]} 9... O-O {[%clk 0:02:46]} 10.
Be3 {[%clk 0:02:52.4]} 10... Nh5 {[%clk 0:02:45.5]} 11. Qd2 {[%clk 0:02:51.4]}
11... h6 {[%clk 0:02:45.4]} 12. g3 {[%clk 0:02:49.9]} 12... Bg5 {[%clk
0:02:45.2]} 13. f4 {[%clk 0:02:48.8]} 13... exf4 {[%clk 0:02:44.5]} 14. gxf4
{[%clk 0:02:48]} 14... Bh4 {[%clk 0:02:40.6]} 15. Kh1 {[%clk 0:02:38]} 15... f5
{[%clk 0:02:34.2]} 16. Rg1 {[%clk 0:02:29.5]} 16... Qf6 {[%clk 0:02:29.5]} 17.
e5 {[%clk 0:02:10.5]} 17... dxe5 {[%clk 0:02:26.5]} 18. Bxc5 {[%clk 0:02:10.6]}
18... e4 {[%clk 0:02:24.2]} 19. Bd4 {[%clk 0:01:35.8]} 19... Qf7 {[%clk
0:02:16.3]} 20. Bc2 {[%clk 0:01:32.6]} 20... Nf6 {[%clk 0:02:01.3]} 21. Rg2
{[%clk 0:01:12.1]} 21... Re8 {[%clk 0:01:53.9]} 22. Rag1 {[%clk 0:01:07.4]}
22... Ng4 {[%clk 0:01:50.6]} 23. h3 {[%clk 0:01:04.1]} 23... e3 {[%clk 0:01:42]}
24. Qc1 {[%clk 0:01:02.3]} 24... Bf2 {[%clk 0:01:29.8]} 25. hxg4 {[%clk
0:00:57.2]} 25... fxg4 {[%clk 0:01:14.5]} 26. Rxg4 {[%clk 0:00:44.7]} 26... Bxg4
{[%clk 0:01:12.5]} 27. Rxg4 {[%clk 0:00:45.6]} 27... Ne5 {[%clk 0:01:02.4]} 28.
Rg2 {[%clk 0:00:33.8]} 28... Qh5+ {[%clk 0:01:00.3]} 29. Rh2 {[%clk 0:00:33]}
29... Qf3+ {[%clk 0:00:56]} 30. Rg2 {[%clk 0:00:33.2]} 30... Ng4 {[%clk
0:00:50.5]} 31. Ng1 {[%clk 0:00:23.5]} 31... Qxf4 {[%clk 0:00:28.4]} 32. Nce2
{[%clk 0:00:17.5]} 32... Qg5 {[%clk 0:00:24.3]} 33. Nf3 {[%clk 0:00:10.5]} 33...
Qh5+ {[%clk 0:00:23.5]} 34. Nh2 {[%clk 0:00:10.3]} 34... Nxh2 {[%clk 0:00:21.3]}
35. Rxg7+ {[%clk 0:00:09.7]} 35... Kf8 {[%clk 0:00:20.4]} 36. Kg2 {[%clk
0:00:07.6]} 36... Ng4 {[%clk 0:00:16.5]} 37. Qh1 {[%clk 0:00:05.3]} 37... Qxh1+
{[%clk 0:00:14.7]} 38. Kxh1 {[%clk 0:00:05.5]} 38... Ne5 {[%clk 0:00:14.5]} 39.
Rh7 {[%clk 0:00:04.1]} 39... Kg8 {[%clk 0:00:13.9]} 40. Rxb7 {[%clk 0:00:03.7]}
40... Rac8 {[%clk 0:00:12.9]} 41. Nf4 {[%clk 0:00:03.6]} 41... Rxc4 {[%clk
0:00:11.6]} 42. Bxe5 {[%clk 0:00:03.8]} 42... Rxe5 {[%clk 0:00:11]} 43. Bh7+
{[%clk 0:00:04.4]} 43... Kf8 {[%clk 0:00:10]} 44. Ng6+ {[%clk 0:00:04.8]} 44...
Ke8 {[%clk 0:00:10]} 45. Nxe5 {[%clk 0:00:05.7]} 45... e2 {[%clk 0:00:08.6]} 46.
Bg6+ {[%clk 0:00:03.8]} 46... Kd8 {[%clk 0:00:06.4]} 47. Rxa7 {[%clk 0:00:02.5]}
47... e1=Q+ {[%clk 0:00:05]} 48. Kg2 {[%clk 0:00:03.4]} 48... Qxe5 {[%clk
0:00:03.9]} 0-1

[Event "Late-Titled-Tuesday-Blitz-September-19-2023"]
[Site "Chess.com"]
[Date "2023.09.19"]
[Round "11"]
[White "Road2GM3000"]
[Black "floplover"]
[Result "0-1"]
[WhiteElo "2480"]
[BlackElo "2411"]
[TimeControl "180+1"]
[EndTime "16:06:03 PDT"]
[Termination "floplover won by checkmate"]

1. d4 {[%clk 0:03:00.9]} 1... d5 {[%clk 0:02:57.9]} 2. c4 {[%clk 0:03:01]} 2...
e6 {[%clk 0:02:58]} 3. Nc3 {[%clk 0:03:01.6]} 3... Bb4 {[%clk 0:02:57.7]} 4.
cxd5 {[%clk 0:03:02.1]} 4... exd5 {[%clk 0:02:57]} 5. Nf3 {[%clk 0:03:03]} 5...
Nf6 {[%clk 0:02:56.2]} 6. Bg5 {[%clk 0:03:03.7]} 6... h6 {[%clk 0:02:55.2]} 7.
Bh4 {[%clk 0:03:03.9]} 7... g5 {[%clk 0:02:52.7]} 8. Bg3 {[%clk 0:03:03.5]} 8...
Ne4 {[%clk 0:02:53.4]} 9. Nd2 {[%clk 0:03:00.9]} 9... Bxc3 {[%clk 0:02:35.3]}
10. bxc3 {[%clk 0:03:01.8]} 10... Nxg3 {[%clk 0:02:35.5]} 11. hxg3 {[%clk
0:03:01.6]} 11... Nc6 {[%clk 0:02:34.2]} 12. e3 {[%clk 0:02:57.1]} 12... Qe7
{[%clk 0:02:26.4]} 13. Nf3 {[%clk 0:02:53.9]} 13... Be6 {[%clk 0:02:23.1]} 14.
Bb5 {[%clk 0:02:51.8]} 14... Bd7 {[%clk 0:02:11.9]} 15. Bxc6 {[%clk 0:02:47.6]}
15... Bxc6 {[%clk 0:02:10.5]} 16. Ne5 {[%clk 0:02:48.3]} 16... Bb5 {[%clk
0:02:08.7]} 17. a4 {[%clk 0:02:41.2]} 17... Ba6 {[%clk 0:02:06]} 18. Qg4 {[%clk
0:02:33.5]} 18... Rd8 {[%clk 0:01:47.7]} 19. Kd2 {[%clk 0:02:18.4]} 19... Rd6
{[%clk 0:01:44.8]} 20. Rhb1 {[%clk 0:02:13.9]} 20... O-O {[%clk 0:01:27.2]} 21.
Rh1 {[%clk 0:02:05]} 21... b6 {[%clk 0:01:11.8]} 22. Rh5 {[%clk 0:01:53.8]}
22... Bc8 {[%clk 0:01:10.2]} 23. Qe2 {[%clk 0:01:44]} 23... c5 {[%clk
0:01:05.8]} 24. Rah1 {[%clk 0:01:33.1]} 24... Kg7 {[%clk 0:01:03.6]} 25. f4
{[%clk 0:00:59.5]} 25... cxd4 {[%clk 0:00:57.7]} 26. exd4 {[%clk 0:00:54.3]}
26... Bf5 {[%clk 0:00:17.2]} 27. fxg5 {[%clk 0:00:52.1]} 27... hxg5 {[%clk
0:00:17]} 28. g4 {[%clk 0:00:47.1]} 28... Be4 {[%clk 0:00:10.9]} 29. Nf3 {[%clk
0:00:46.1]} 29... Rg6 {[%clk 0:00:09.9]} 30. Qe3 {[%clk 0:00:37]} 30... Qa3
{[%clk 0:00:09.3]} 31. Rh7+ {[%clk 0:00:18.5]} 31... Kf6 {[%clk 0:00:09]} 32.
Rf1 {[%clk 0:00:15.3]} 32... Qb2+ {[%clk 0:00:07.2]} 33. Ke1 {[%clk 0:00:15.9]}
33... Ke7 {[%clk 0:00:06.4]} 34. Nd2 {[%clk 0:00:16.3]} 34... Qc1+ {[%clk
0:00:05.2]} 35. Kf2 {[%clk 0:00:15.5]} 35... Rf6+ {[%clk 0:00:05.5]} 36. Ke2
{[%clk 0:00:14.2]} 36... Rxf1 {[%clk 0:00:05.2]} 37. Nxf1 {[%clk 0:00:15.1]}
37... Qxe3+ {[%clk 0:00:05.2]} 38. Nxe3 {[%clk 0:00:15.3]} 38... Bxh7 {[%clk
0:00:05.9]} 39. Nxd5+ {[%clk 0:00:15]} 39... Kd6 {[%clk 0:00:05.3]} 40. Nf6
{[%clk 0:00:15.5]} 40... Bg6 {[%clk 0:00:05.6]} 41. c4 {[%clk 0:00:15.1]} 41...
Rc8 {[%clk 0:00:04.8]} 42. c5+ {[%clk 0:00:13.9]} 42... bxc5 {[%clk 0:00:05.7]}
43. Ke3 {[%clk 0:00:14.2]} 43... cxd4+ {[%clk 0:00:05.6]} 44. Kxd4 {[%clk
0:00:15.1]} 44... Rb8 {[%clk 0:00:05.6]} 45. Kc3 {[%clk 0:00:15.5]} 45... Rb6
{[%clk 0:00:05.7]} 46. Ne8+ {[%clk 0:00:15.9]} 46... Kd7 {[%clk 0:00:05.2]} 47.
Ng7 {[%clk 0:00:16.8]} 47... Rc6+ {[%clk 0:00:04.8]} 48. Kd4 {[%clk 0:00:17.7]}
48... Rd6+ {[%clk 0:00:05.1]} 49. Ke5 {[%clk 0:00:18.6]} 49... Rd2 {[%clk
0:00:05.1]} 50. a5 {[%clk 0:00:19.5]} 50... Rxg2 {[%clk 0:00:05.2]} 51. a6
{[%clk 0:00:20.3]} 51... Rxg4 {[%clk 0:00:05.4]} 52. Kf6 {[%clk 0:00:21.2]}
52... Ra4 {[%clk 0:00:05.5]} 53. Nf5 {[%clk 0:00:20.8]} 53... Rxa6+ {[%clk
0:00:05.8]} 54. Kg7 {[%clk 0:00:20.9]} 54... Bxf5 {[%clk 0:00:06.3]} 55. Kf8
{[%clk 0:00:21.6]} 55... g4 {[%clk 0:00:06.5]} 56. Kg8 {[%clk 0:00:22.5]} 56...
g3 {[%clk 0:00:07.4]} 57. Kg7 {[%clk 0:00:22.9]} 57... g2 {[%clk 0:00:08.3]} 58.
Kf8 {[%clk 0:00:23.8]} 58... g1=Q {[%clk 0:00:07.4]} 59. Kxf7 {[%clk 0:00:24.7]}
59... Qg6+ {[%clk 0:00:07.2]} 60. Kf8 {[%clk 0:00:25.6]} 60... Qf6+ {[%clk
0:00:07.4]} 61. Kg8 {[%clk 0:00:24.9]} 61... Qe7 {[%clk 0:00:07]} 62. Kh8 {[%clk
0:00:25.1]} 62... Rh6+ {[%clk 0:00:07.3]} 63. Kg8 {[%clk 0:00:25.6]} 63... Qe8+
{[%clk 0:00:06.3]} 64. Kg7 {[%clk 0:00:25.8]} 64... Qg6+ {[%clk 0:00:05.8]} 65.
Kf8 {[%clk 0:00:26]} 65... Rh8# {[%clk 0:00:06.2]} 0-1